bitfinex/quotes_ETHUSD_20251118
["timestamp","ask_amount","ask_price","bid_price","bid_amount"]
[1763445219809,0.90699264,3020.5,3020.1,0.001]
[1763445220008,0.32438524,3020.4,3020.1,0.001]
[1763445220378,7.47685723,3020.2,3020.1,0.001]
[1763445221309,7.07135323,3020.2,3020.1,0.001]
[1763445221605,7.56215323,3020.2,3020.1,0.001]
[1763445221806,7.90564855,3020.2,3020.1,0.001]
[1763445222676,8.39644855,3020.2,3020.1,0.001]
[1763445223006,1.74128796,3020.2,3020.1,0.001]
[1763445223306,1.23138062,3020.2,3020.1,0.001]
[1763445223527,1.72218062,3020.2,3020.1,0.001]
[1763445223711,0.94838062,3020.2,3020.1,0.001]
[1763445223906,1.18999264,3020.2,3020.1,0.001]
[1763445224395,2.08629664,3020.2,3020.1,0.001]
[1763445224592,2.3447063,3020.2,3020.1,0.001]
[1763445224793,2.8425063,3020.2,3020.1,0.001]
[1763445225211,5.2345063,3020.2,3020.1,0.001]
[1763445225598,4.0385063,3020.2,3020.1,0.001]
[1763445225798,2.8425063,3020.2,3020.1,0.001]
[1763445226113,9.31710398,3020.2,3020.1,0.001]
[1763445227339,9.31710398,3020.2,3020.0,0.001]
[1763445227340,1.31249664,3020.1,3020.0,0.001]
[1763445227503,3.27419639,3020.1,3020.0,0.001]
[1763445227704,3.27419639,3020.1,3019.7,0.001]
[1763445228007,1.087404,3019.9,3019.7,0.001]
[1763445228306,1.12879609,3019.9,3019.7,0.001]
[1763445228513,1.973126,3019.9,3019.7,0.001]
[1763445228708,2.88011864,3019.9,3019.7,0.001]
[1763445228909,6.19148656,3019.9,3019.7,0.001]
[1763445229509,2.88011864,3019.9,3019.7,0.001]
[1763445229698,6.19148656,3019.9,3019.7,0.001]
[1763445230136,2.88011864,3019.9,3019.7,0.001]
[1763445230515,6.19148656,3019.9,3019.7,0.001]
[1763445230906,2.88011864,3019.9,3019.7,0.001]
[1763445231250,2.83872655,3019.9,3019.7,0.001]
[1763445231815,1.31249664,3019.8,3019.7,0.001]
[1763445232016,3.14269605,3019.8,3017.3,0.6512296]
[1763445232327,1.31249664,3019.0,3017.1,0.405504]
[1763445232509,1.06270943,3018.9,3017.1,0.405504]
[1763445232709,1.06270943,3018.9,3017.0,0.405504]
[1763445233537,0.52097392,3018.5,3017.0,0.405504]
[1763445233842,0.32541266,3018.4,3017.0,1.97308288]
[1763445234045,0.284,3018.4,3017.1,0.37178918]
[1763445234743,0.284,3018.4,3017.2,0.03314331]
[1763445235153,0.284,3018.4,3017.1,0.37178918]
[1763445235442,2.392,3018.3,3017.1,0.37178918]
[1763445235942,2.392,3018.3,3016.9,0.405504]
[1763445236442,0.04141541,3018.2,3016.5,1.74480891]
[1763445236737,0.4978,3018.3,3016.3,1.74480891]
[1763445236738,0.405504,3018.3,3016.3,1.74480891]
[1763445236942,0.405504,3018.3,3016.4,0.17448089]
[1763445237319,0.903304,3018.3,3016.4,0.17448089]
[1763445237545,0.04141541,3018.2,3016.1,1.74480891]
[1763445237725,0.53921541,3018.2,3016.1,1.74480891]
[1763445237929,0.53921541,3018.2,3016.2,0.405504]
[1763445238172,0.53921541,3018.2,3016.2,1.31249664]
[1763445238381,0.53921541,3018.2,3016.2,0.405504]
[1763445238733,0.405504,3018.3,3016.2,0.355504]
[1763445238953,0.405504,3018.3,3016.3,0.27526647]
[1763445239153,0.405504,3018.3,3016.4,0.0331521]
[1763445239384,1.42796656,3018.5,3016.4,0.0331521]
[1763445239558,0.284,3018.2,3016.4,0.0331521]
[1763445240166,0.284,3018.2,3016.4,1.77796101]
[1763445240465,0.284,3018.2,3016.5,0.20532275]
[1763445240683,0.52097392,3018.5,3016.6,0.0331499]
[1763445240985,0.284,3018.1,3016.8,0.405504]
[1763445242446,1.40479264,3019.1,3016.6,0.4386539]
[1763445242771,0.7818,3019.0,3016.7,0.405504]
[1763445242942,0.21028507,3018.9,3016.7,0.405504]
[1763445243272,0.284,3019.0,3016.8,0.0331477]
[1763445243568,0.284,3019.0,3016.9,0.4386506]
[1763445244285,0.284,3019.0,3016.9,3.09045215]
[1763445244483,0.284,3019.0,3017.0,1.74480891]
[1763445244641,0.284,3019.0,3017.2,0.405504]
[1763445244836,0.52101321,3018.5,3017.4,0.405504]
[1763445245079,0.52101321,3018.5,3017.5,0.03314001]
[1763445245387,0.52101321,3018.5,3017.2,0.405504]
[1763445245388,3.30099264,3018.4,3017.2,0.405504]
[1763445245539,1.19099264,3018.3,3017.3,0.24593581]
[1763445245742,0.284,3018.3,3017.2,0.405504]
[1763445246038,0.284,3018.3,3017.4,0.405504]
[1763445246256,0.284,3018.3,3017.5,0.03314001]
[1763445247057,0.52101321,3018.5,3017.3,1.74480891]
[1763445247259,0.52101321,3018.5,3017.0,0.0331455]
[1763445247260,0.284,3018.4,3017.4,2.18345402]
[1763445247454,0.284,3018.4,3017.6,0.405504]
[1763445248285,0.284,3018.4,3017.6,1.74480891]
[1763445248439,0.284,3018.4,3017.5,1.96315431]
[1763445250394,0.32541266,3018.4,3017.5,1.96315431]
[1763445250560,0.284,3018.4,3017.5,1.96315431]
[1763445250760,0.284,3018.4,3017.6,0.19631543]
[1763445251294,0.284,3018.4,3017.7,0.03313782]
[1763445251484,0.284,3018.3,3017.7,1.74480891]
[1763445251792,0.284,3018.3,3017.7,1.22381273]
[1763445253307,0.284,3018.3,3017.6,0.19631543]
[1763445254497,0.284,3018.3,3017.7,0.29332749]
[1763445254663,0.284,3018.3,3017.3,2.33145548]
[1763445254664,0.7679,3018.3,3017.3,2.33145548]
[1763445254869,0.04141541,3018.2,3017.0,2.33145548]
[1763445255100,0.52531541,3018.2,3017.0,2.33145548]
[1763445255314,0.52110583,3018.0,3017.1,0.23314555]
[1763445255471,0.56252398,3018.0,3017.1,0.23314555]
[1763445255681,0.1955,3017.9,3017.1,0.23314555]
[1763445257295,0.1955,3017.9,3017.1,2.56460103]
[1763445257497,0.1955,3017.9,3017.1,0.23314555]
[1763445257696,0.1955,3017.9,3017.2,0.2564601]
[1763445259024,0.6588,3017.9,3017.2,0.2564601]
[1763445259522,0.284,3017.8,3017.3,2.36459769]
[1763445260243,0.284,3017.8,3017.4,2.33145548]
[1763445260806,0.284,3017.8,3017.5,2.33145548]
[1763445261006,0.284,3017.8,3017.6,0.23314555]
[1763445262213,0.284,3017.8,3017.6,2.56460103]
[1763445263641,0.284,3017.8,3017.7,2.33145548]
[1763445264018,0.284,3017.8,3017.7,1.81043706]
[1763445264918,0.284,3017.8,3017.6,0.23314555]
[1763445265108,0.284,3017.8,3017.4,0.405504]
[1763445265311,2.394,3017.7,3017.4,0.405504]
[1763445265514,1.197,3017.7,3017.3,0.405504]
[1763445266313,1.197,3017.7,3017.3,3.30594261]
[1763445266749,0.284,3017.8,3017.3,3.30594261]
[1763445267050,0.284,3017.8,3017.4,0.35624027]
[1763445267624,0.80503029,3017.8,3017.4,0.35624027]
[1763445268451,0.80503029,3017.8,3017.4,3.25667888]
[1763445269724,0.80503029,3017.8,3017.4,3.28981999]
[1763445270530,0.80503029,3017.8,3017.5,2.90043861]
[1763445270728,0.52103029,3017.8,3017.7,0.405504]
[1763445271036,0.284,3017.8,3017.7,0.405504]
[1763445272255,0.284,3017.8,3017.7,0.66288815]
[1763445272549,0.284,3017.8,3017.6,0.405504]
[1763445272732,0.284,3017.8,3017.6,0.80850435]
[1763445273616,0.284,3017.8,3017.6,0.40300035]
[1763445274758,0.284,3017.8,3017.7,2.98283825]
[1763445275268,2.678,3017.8,3017.7,2.98283825]
[1763445275648,2.678,3017.8,3017.7,0.42928312]
[1763445275849,2.678,3017.8,3017.6,2.98283825]
[1763445276035,0.7797,3017.8,3017.6,2.98283825]
[1763445276382,0.284,3017.8,3017.5,2.98283825]
[1763445277232,0.284,3017.8,3017.6,0.03313891]
[1763445277432,0.284,3017.8,3017.5,3.01597826]
[1763445277677,0.284,3017.8,3017.6,0.30159783]
[1763445278182,0.286,3017.8,3017.6,0.30159783]
[1763445282858,0.4957,3017.7,3017.4,2.98283825]
[1763445283066,0.4957,3017.5,3017.3,2.98383825]
[1763445283249,0.4957,3017.4,3017.3,0.001]
[1763445284172,0.9742,3017.4,3017.3,0.001]
[1763445285271,3.3682,3017.4,3017.3,0.001]
[1763445285578,2.394,3017.4,3017.3,0.001]
[1763445285736,3.3682,3017.4,3017.3,0.001]
[1763445286337,3.3682,3017.4,3017.3,2.38459938]
[1763445286577,0.9742,3017.4,3017.3,0.001]
[1763445287381,0.4957,3017.4,3017.3,0.001]
[1763445287677,1.01683908,3017.4,3017.3,0.001]
[1763445288213,0.52113908,3017.4,3017.3,0.001]
[1763445288376,0.52113908,3017.4,3017.3,0.23945994]
[1763445288780,0.286,3017.8,3017.3,0.23945994]
[1763445288989,0.7645,3017.8,3017.7,1.786912]
[1763445289211,0.7645,3017.8,3017.6,1.786912]
[1763445289384,0.4785,3017.7,3017.6,1.786912]
[1763445289579,0.9742,3017.7,3017.6,1.786912]
[1763445290122,0.286,3017.8,3017.6,1.786912]
[1763445290292,0.286,3017.8,3017.4,2.38359938]
[1763445290612,0.286,3017.8,3017.5,0.23845994]
[1763445290800,0.286,3017.8,3017.5,2.62205932]
[1763445291817,0.286,3017.8,3017.5,2.10099025]
[1763445292327,0.002,3017.8,3017.6,0.405504]
[1763445292626,0.283,3017.7,3017.6,0.405504]
[1763445292783,0.283,3017.7,3017.6,0.74433823]
[1763445293116,0.283,3017.7,3017.6,0.33883423]
[1763445295199,2.4542,3017.7,3017.5,2.98283825]
[1763445295516,0.4957,3017.6,3017.3,0.001]
[1763445295701,0.4957,3017.4,3017.3,0.001]
[1763445296210,0.9742,3017.4,3017.3,0.001]
[1763445296814,0.4957,3017.4,3017.3,0.001]
[1763445297114,0.002,3017.8,3017.3,0.001]
[1763445297289,0.283,3017.4,3017.3,0.03414221]
[1763445297491,0.283,3017.4,3017.3,0.001]
[1763445297710,0.7787,3017.4,3017.3,0.001]
[1763445297998,1.2572,3017.4,3017.3,0.001]
[1763445298796,0.7787,3017.4,3017.3,0.001]
[1763445299004,0.283,3017.4,3017.3,0.001]
[1763445299925,0.7787,3017.4,3017.3,0.001]
[1763445300289,0.283,3017.4,3017.3,0.001]
[1763445301221,1.2572,3017.4,3017.3,0.001]
[1763445301622,1.2572,3017.4,3016.8,0.001]
[1763445301928,0.90699264,3016.8,3016.1,0.001]
[1763445302122,0.1988,3016.2,3016.1,0.001]
[1763445302326,0.8623,3016.2,3016.1,0.001]
[1763445302616,1.3349,3016.2,3016.1,0.001]
[1763445303191,0.283,3016.2,3016.1,0.001]
[1763445303600,0.7787,3016.2,3016.1,0.001]
[1763445304222,1.1373,3016.2,3016.1,0.001]
[1763445304886,0.7787,3016.2,3016.1,0.001]
[1763445305424,4.07969264,3016.2,3016.1,0.001]
[1763445305917,4.43829264,3016.2,3016.1,0.001]
[1763445307525,2.04429264,3016.2,3016.1,0.001]
[1763445308690,2.2487219,3016.2,3016.1,0.001]
[1763445310339,1.40269264,3016.2,3016.1,0.001]
[1763445310508,2.04429264,3016.2,3016.1,0.001]
[1763445311207,1.76129264,3016.2,3016.1,0.001]
[1763445311407,2.04429264,3016.2,3016.1,0.001]
[1763445312556,2.56568494,3016.2,3016.1,0.001]
[1763445312758,1.42838494,3016.2,3016.1,0.001]
[1763445313036,2.56538494,3016.2,3016.1,0.001]
[1763445313235,2.56538494,3016.2,3016.1,0.4691]
[1763445313236,1.71138494,3016.2,3016.1,0.4691]
[1763445313881,0.5213923,3016.2,3016.1,1.1439]
[1763445314171,0.8043923,3016.2,3016.1,1.58255939]
[1763445314509,0.1892,3017.3,3016.2,0.405504]
[1763445314707,0.002,3018.2,3017.2,0.6628]
[1763445314904,0.002,3018.2,3017.7,0.4681]
[1763445315226,0.002,3018.2,3017.4,0.405504]
[1763445315227,0.283,3017.7,3017.4,0.405504]
[1763445315528,0.283,3017.7,3017.4,2.78691453]
[1763445315739,0.002,3017.8,3017.6,0.873604]
[1763445315950,0.002,3017.8,3017.7,0.4681]
[1763445316240,0.285,3017.8,3017.5,0.32670145]
[1763445316830,0.285,3017.8,3017.5,0.80680145]
[1763445317149,0.285,3017.8,3017.7,0.4681]
[1763445317646,0.002,3017.8,3017.7,0.4681]
[1763445317853,0.5024,3017.8,3017.2,2.57611053]
[1763445318050,0.5024,3017.8,3017.1,0.405504]
[1763445318051,1.48202841,3017.8,3017.3,0.29816145]
[1763445318554,1.02342841,3017.8,3017.1,0.545204]
[1763445318751,1.02342841,3017.8,3017.1,0.1397]
[1763445318963,1.02342841,3017.8,3017.1,0.17284441]
[1763445319254,1.02342841,3017.8,3017.1,0.1397]
[1763445320121,0.80602841,3017.8,3017.1,0.64334441]
[1763445320345,0.80602841,3017.8,3017.2,0.77297549]
[1763445320654,0.80602841,3017.8,3017.3,0.4705]
[1763445321029,0.80602841,3017.8,3017.7,0.4528]
[1763445321231,0.80602841,3017.8,3017.3,0.4705]
[1763445321425,0.80602841,3017.8,3017.2,0.30247549]
[1763445321952,0.80602841,3017.8,3017.4,1.77493129]
[1763445322153,0.80602841,3017.8,3017.4,1.98267197]
[1763445323153,0.80602841,3017.8,3017.5,0.4705]
[1763445323333,0.80602841,3017.8,3017.5,2.24543129]
[1763445323520,0.80602841,3017.8,3017.5,1.77493129]
[1763445325272,2.394,3017.7,3017.5,1.77493129]
[1763445325757,1.197,3017.7,3017.5,2.44369849]
[1763445325924,0.80602841,3017.8,3017.6,0.4528]
[1763445327366,0.80602841,3017.8,3017.7,0.4528]
[1763445328026,0.285,3017.8,3017.7,0.4528]
[1763445330761,0.6786,3017.8,3017.5,1.97319849]
[1763445331057,1.144,3017.8,3017.5,1.77493129]
[1763445331263,0.6786,3017.8,3017.5,1.77493129]
[1763445331483,0.4654,3017.6,3017.3,1.77493129]
[1763445331689,0.0039,3017.4,3017.2,1.25385165]
[1763445331889,0.283,3017.3,3016.8,2.38141053]
[1763445332088,0.283,3017.3,3016.9,0.28519105]
[1763445332293,0.283,3017.3,3016.9,0.75569105]
[1763445333292,0.283,3017.3,3016.9,3.13710158]
[1763445333587,0.283,3017.3,3016.9,0.75569105]
[1763445333766,0.283,3017.3,3016.9,0.28519105]
[1763445334379,0.283,3017.3,3017.0,0.26666016]
[1763445334985,0.283,3017.3,3017.0,0.73716016]
[1763445335365,2.394,3017.2,3017.1,0.6142]
[1763445335587,2.394,3017.2,3017.1,1.067]
[1763445336295,0.283,3017.2,3017.1,4.76090717]
[1763445336497,0.283,3017.2,3017.1,5.32841717]
[1763445336792,0.283,3017.2,3017.1,4.42142453]
[1763445337775,0.283,3017.2,3017.1,3.40172053]
[1763445337967,0.283,3017.2,3017.1,0.4528]
[1763445338562,0.283,3017.2,3017.1,0.5921]
[1763445338765,0.283,3017.2,3017.1,1.0897]
[1763445339178,0.283,3017.2,3017.1,2.97351053]
[1763445339412,0.283,3017.2,3017.1,2.83421053]
[1763445339993,0.283,3017.2,3017.1,3.84660796]
[1763445340188,0.283,3017.2,3017.1,4.25211196]
[1763445340390,0.283,3017.2,3017.1,1.87070143]
[1763445341104,0.283,3017.2,3017.1,1.37310143]
[1763445341300,0.283,3017.2,3017.1,1.87070143]
[1763445342417,0.283,3017.2,3017.1,4.85353968]
[1763445342902,0.283,3017.2,3017.1,4.35593968]
[1763445343108,0.283,3017.2,3017.1,1.23380143]
[1763445343422,0.283,3017.2,3017.1,3.35833568]
[1763445343931,0.283,3017.2,3017.1,3.85273568]
[1763445344132,0.52108824,3017.3,3017.1,4.48963568]
[1763445344337,0.52108824,3017.3,3017.2,1.55832885]
[1763445344503,0.002,3017.8,3017.2,0.992]
[1763445344829,0.002,3017.8,3017.4,2.98630741]
[1763445345325,2.677,3017.7,3017.4,2.98630741]
[1763445347040,0.283,3017.7,3017.4,2.98630741]
[1763445347640,0.283,3017.7,3017.6,0.4944]
[1763445347844,0.283,3017.7,3017.6,4.32637815]
[1763445348025,0.283,3017.7,3017.6,3.82877815]
[1763445348625,0.002,3017.8,3017.6,3.82877815]
[1763445348810,0.283,3017.7,3017.6,3.33437815]
[1763445349410,0.283,3017.7,3017.6,3.82877815]
[1763445349625,0.283,3017.7,3017.6,4.32637815]
[1763445350206,0.283,3017.7,3017.6,3.82877815]
[1763445350518,1.1543,3017.7,3017.5,2.98630741]
[1763445350707,1.1543,3017.7,3017.4,2.98630741]
[1763445350708,0.7331,3017.7,3017.4,2.98630741]
[1763445351313,0.283,3017.7,3017.4,2.98630741]
[1763445351520,0.4087,3017.5,3017.4,2.98630741]
[1763445351722,0.283,3017.7,3017.4,3.28493815]
[1763445351939,0.002,3017.8,3017.6,0.4944]
[1763445352137,0.283,3017.7,3017.5,2.98630741]
[1763445352318,0.285,3017.7,3017.5,2.98630741]
[1763445352524,0.285,3017.7,3017.4,3.28493815]
[1763445352854,0.285,3017.7,3017.5,0.32849381]
[1763445353020,0.285,3017.7,3017.6,3.51384632]
[1763445353226,0.285,3017.7,3017.6,4.01144632]
[1763445353811,0.285,3017.7,3017.6,3.97830741]
[1763445354008,0.4647,3018.5,3017.7,0.405504]
[1763445354009,0.002,3018.5,3017.7,0.405504]
[1763445354247,0.00020404,3018.2,3018.1,1.095004]
[1763445354433,0.002,3018.5,3018.1,1.095004]
[1763445354632,0.283,3018.2,3018.1,0.600604]
[1763445354945,0.002,3018.5,3018.4,0.899904]
[1763445355147,0.285,3018.5,3018.4,0.899904]
[1763445355452,0.285,3018.5,3018.4,1.90519756]
[1763445356154,0.4627,3019.8,3018.5,0.405504]
[1763445356339,0.1931,3019.9,3019.4,0.4944]
[1763445356542,0.1931,3019.9,3019.8,1.78616237]
[1763445356752,0.002,3019.9,3019.8,1.78616237]
[1763445356966,0.002,3019.9,3019.5,2.38169124]
[1763445356967,0.4444,3019.9,3019.5,2.38169124]
[1763445357267,0.4444,3019.9,3019.8,1.78438306]
[1763445357442,0.7274,3019.9,3019.8,1.78438306]
[1763445357643,1.1899,3019.9,3019.8,1.78438306]
[1763445358364,1.1899,3019.9,3019.7,1.78438306]
[1763445358528,0.7274,3019.9,3019.7,1.78438306]
[1763445358735,0.4424,3019.8,3019.7,1.78438306]
[1763445358931,0.9049,3019.8,3019.6,1.78438306]
[1763445359260,0.9049,3019.8,3019.5,1.78438306]
[1763445359663,0.4627,3019.8,3019.5,1.78438306]
[1763445359873,0.4627,3019.8,3019.6,1.78438306]
[1763445360485,0.4424,3019.7,3019.6,1.78438306]
[1763445360637,0.4424,3019.7,3019.5,1.78438306]
[1763445360976,0.285,3019.9,3019.6,1.78438306]
[1763445361333,0.4501,3019.7,3019.6,1.78438306]
[1763445361752,0.4501,3019.7,3019.0,0.1951]
[1763445361753,0.4501,3019.7,3019.5,1.78438306]
[1763445362066,0.283,3019.8,3019.5,1.78438306]
[1763445362979,0.283,3019.8,3019.5,2.28198306]
[1763445363149,0.283,3019.8,3019.7,0.4944]
[1763445363352,1.1879,3019.8,3019.4,1.78438306]
[1763445363761,0.283,3019.8,3019.7,0.4944]
[1763445363954,0.283,3019.8,3019.5,0.4976]
[1763445364153,0.283,3019.8,3019.5,0.53071806]
[1763445364355,0.283,3019.8,3019.5,0.76222817]
[1763445364550,0.283,3019.8,3019.7,0.4944]
[1763445364753,0.002,3019.9,3019.7,0.4944]
[1763445364754,0.002,3019.9,3019.7,0.52751587]
[1763445365089,0.002,3019.9,3019.8,3.21500183]
[1763445365260,2.394,3019.9,3019.8,1.71900418]
[1763445365586,0.4627,3020.7,3019.8,1.397504]
[1763445365775,0.4854,3020.5,3019.9,1.77686903]
[1763445366349,0.4854,3020.5,3019.8,2.67997303]
[1763445366595,0.283,3020.2,3019.8,2.67997303]
[1763445366792,0.283,3020.2,3019.8,2.18237303]
[1763445367087,0.283,3020.2,3020.1,0.6345]
[1763445367588,0.4854,3020.9,3020.2,0.405504]
[1763445367792,0.4199,3020.2,3020.0,1.77686903]
[1763445367999,0.4205,3020.1,3019.6,1.77686903]
[1763445368165,0.7704,3020.3,3019.6,1.2562048]
[1763445368510,0.4854,3020.2,3019.6,1.2562048]
[1763445369438,0.4854,3020.2,3019.6,1.28932176]
[1763445369604,0.4854,3020.2,3019.6,1.2562048]
[1763445369923,0.285,3020.3,3019.6,1.28932176]
[1763445370896,0.285,3020.3,3019.6,1.2562048]
[1763445370897,0.7704,3020.3,3019.6,1.2562048]
[1763445371490,0.285,3020.3,3019.6,1.2562048]
[1763445371731,0.4874,3020.2,3019.6,1.2562048]
[1763445372513,0.4199,3019.7,3019.2,1.58447296]
[1763445372841,0.4207,3019.3,3018.6,2.38169124]
[1763445373064,0.283,3019.6,3018.6,0.63326989]
[1763445373261,0.52080769,3019.2,3018.6,2.38169124]
[1763445373611,1.00620769,3019.2,3018.4,2.38169124]
[1763445373827,0.4854,3019.1,3018.4,3.02976457]
[1763445374056,0.283,3019.0,3018.5,0.90699264]
[1763445374230,0.283,3019.0,3018.6,0.39367572]
[1763445374618,0.52082047,3018.9,3018.6,0.39367572]
[1763445374817,0.283,3019.0,3018.6,0.39367572]
[1763445375274,2.392,3018.9,3018.6,0.39367572]
[1763445375456,1.196,3018.9,3018.6,0.39367572]
[1763445376116,1.196,3018.9,3018.6,0.85987572]
[1763445376323,1.196,3018.9,3018.8,0.4522]
[1763445377436,1.196,3018.9,3018.5,2.38169124]
[1763445377437,0.679,3018.9,3018.5,2.38169124]
[1763445377636,0.679,3018.9,3018.2,2.38169124]
[1763445377637,0.4987,3018.6,3018.2,2.38169124]
[1763445377836,0.4091,3018.5,3018.1,2.38169124]
[1763445378036,0.283,3018.4,3018.2,0.23816912]
[1763445378879,0.283,3018.4,3018.3,0.4522]
[1763445379422,0.283,3018.4,3018.2,0.23816912]
[1763445380452,0.002,3020.2,3018.9,0.405504]
[1763445380654,0.002,3020.2,3019.6,0.405504]
[1763445380883,0.002,3020.2,3020.1,0.873904]
[1763445381081,0.002,3020.2,3020.1,3.24821969]
[1763445381487,0.002,3020.3,3020.1,3.24821969]
[1763445381488,0.002,3020.3,3020.2,1.31249664]
[1763445381656,0.236,3020.3,3020.2,1.195504]
[1763445381864,0.002,3020.9,3020.2,1.195504]
[1763445382071,0.002,3020.9,3020.5,1.70749664]
[1763445382269,0.002,3020.9,3020.5,4.11327796]
[1763445382463,0.002,3020.9,3020.5,2.13560374]
[1763445383103,0.285,3020.6,3020.5,1.31249664]
[1763445383314,0.285,3020.6,3020.5,2.77880137]
[1763445383605,0.285,3020.6,3020.5,0.7740834]
[1763445383909,0.285,3020.6,3020.5,0.405504]
[1763445384409,0.285,3020.6,3020.5,1.2286111]
[1763445384763,0.285,3020.6,3020.5,2.13560374]
[1763445385291,2.677,3020.6,3020.5,1.2286111]
[1763445385497,2.677,3020.6,3020.5,1.86553401]
[1763445385694,0.002,3020.9,3020.6,1.31249664]
[1763445385994,0.002,3020.9,3020.8,0.395]
[1763445386198,0.002,3020.9,3020.8,2.76654156]
[1763445386619,0.6637,3020.9,3020.7,2.37154156]
[1763445386813,0.6637,3020.9,3020.5,1.2483049]
[1763445386814,0.6745,3020.9,3020.8,1.18594597]
[1763445387105,0.6745,3020.9,3020.3,3.2785342]
[1763445387106,1.4245,3020.9,3020.3,3.2785342]
[1763445387264,0.4797,3020.9,3020.4,2.69939498]
[1763445387464,0.9575,3020.9,3020.4,0.32785342]
[1763445387710,0.9575,3020.9,3020.5,2.37154156]
[1763445388103,0.4778,3020.8,3020.5,2.37154156]
[1763445388305,0.4778,3020.8,3020.4,2.69939498]
[1763445388706,0.467,3020.5,3020.3,2.37154156]
[1763445388910,0.9448,3020.4,3020.3,2.37154156]
[1763445389284,0.9575,3020.9,3020.2,2.37154156]
[1763445389507,0.9575,3020.9,3020.8,1.18593033]
[1763445389722,1.4245,3020.9,3020.8,1.18583054]
[1763445391405,1.4245,3020.9,3020.6,1.77887313]
[1763445391585,0.4272,3020.7,3020.6,1.77887313]
[1763445392306,0.285,3020.9,3020.6,0.21099331]
[1763445392612,0.9575,3020.9,3020.7,1.77886995]
[1763445393035,0.9448,3020.8,3020.7,1.77886995]
[1763445393183,0.9448,3020.8,3020.6,1.77886995]
[1763445393729,0.905,3020.7,3020.6,1.77886995]
[1763445395242,1.6232,3020.7,3020.6,1.77886995]
[1763445395563,2.392,3020.7,3020.6,2.35175695]
[1763445395710,0.467,3020.7,3020.6,4.077887]
[1763445396041,0.9418,3020.9,3020.6,4.077887]
[1763445396248,0.4797,3020.9,3020.8,1.77866138]
[1763445396446,0.9479,3020.9,3020.8,1.77866138]
[1763445396744,0.7532,3020.9,3020.8,1.77866138]
[1763445396943,0.002,3020.9,3020.8,1.41926265]
[1763445397130,0.002,3021.3,3020.9,0.405504]
[1763445397330,0.002,3021.3,3021.2,0.940104]
[1763445397631,0.219,3021.3,3021.2,0.940104]
[1763445397841,0.002,3021.6,3021.3,0.405504]
[1763445398157,0.002,3021.6,3021.5,0.405504]
[1763445398453,0.002,3021.6,3021.4,0.405504]
[1763445398753,0.002,3021.6,3021.4,2.36726507]
[1763445398914,0.002,3021.6,3021.3,2.36726507]
[1763445399113,0.283,3021.5,3021.4,0.2762297]
[1763445399845,0.7512,3021.5,3021.2,0.39503197]
[1763445400225,0.283,3021.5,3021.4,1.77450501]
[1763445400567,1.65819264,3021.5,3021.0,0.36689368]
[1763445400766,0.4682,3021.1,3020.6,1.18319104]
[1763445400928,0.6636,3020.7,3020.6,1.18319104]
[1763445401133,0.9466,3020.7,3020.5,1.18319104]
[1763445401355,0.9405,3020.7,3020.5,1.18319104]
[1763445401563,0.4682,3020.6,3020.5,1.18319104]
[1763445401962,0.9303,3020.6,3020.5,1.18319104]
[1763445402280,0.4784,3020.7,3020.5,1.18319104]
[1763445402281,0.283,3020.7,3020.5,0.77716961]
[1763445402478,0.283,3020.7,3020.6,1.18412806]
[1763445402633,1.2133,3020.7,3020.6,1.1842056]
[1763445403643,1.2133,3020.7,3020.6,0.66363396]
[1763445405367,3.6053,3020.7,3020.6,0.66363396]
[1763445405564,3.6053,3020.7,3020.3,1.77450501]
[1763445405769,0.4682,3020.4,3020.2,1.77450501]
[1763445405963,0.4621,3020.6,3020.1,1.77450501]
[1763445406167,0.4621,3020.5,3020.1,1.77450501]
[1763445406392,0.4682,3020.2,3019.9,1.77450501]
[1763445406537,0.076,3020.0,3019.9,1.77450501]
[1763445406734,0.076,3020.0,3019.9,1.25384208]
[1763445406968,0.076,3020.0,3019.5,2.36726507]
[1763445407279,0.076,3020.0,3019.6,2.60399158]
[1763445408049,0.283,3020.1,3019.6,3.25512303]
[1763445408371,0.283,3020.1,3019.9,0.001]
[1763445409338,0.4682,3020.0,3019.9,0.001]
[1763445409659,0.9303,3020.0,3019.9,0.001]
[1763445411286,8.06290068,3020.0,3019.9,0.001]
[1763445411447,8.85610003,3020.0,3019.9,0.001]
[1763445411962,9.37690557,3020.0,3019.9,0.001]
[1763445412159,8.85610003,3020.0,3019.9,0.001]
[1763445415259,11.24810003,3020.0,3019.9,0.001]
[1763445415664,11.76892392,3020.0,3019.9,0.001]
[1763445417100,3.1927066,3020.0,3019.9,0.001]
[1763445417254,2.64111653,3020.0,3019.9,0.001]
[1763445418781,2.12029264,3020.0,3019.9,0.001]
[1763445420700,2.16168336,3020.0,3019.9,0.001]
[1763445421001,8.34590068,3020.0,3019.9,0.001]
[1763445421199,8.30450996,3020.0,3019.9,0.001]
[1763445421353,9.13496096,3020.0,3019.9,0.001]
[1763445421761,9.65576728,3020.0,3019.9,0.001]
[1763445423118,3.18854996,3020.0,3019.9,0.001]
[1763445423260,2.12029264,3020.0,3019.9,0.001]
[1763445424259,1.65819264,3020.0,3019.9,0.001]
[1763445424591,2.12029264,3020.0,3019.9,0.001]
[1763445425092,8.30450996,3020.0,3019.9,0.001]
[1763445425295,10.69850996,3020.0,3019.9,0.001]
[1763445425498,11.76836096,3020.0,3019.9,0.001]
[1763445425733,0.90899264,3020.0,3019.9,0.001]
[1763445425898,2.38799264,3020.0,3019.9,0.001]
[1763445426736,0.285,3020.0,3019.9,0.4859]
[1763445426954,0.285,3020.0,3019.9,1.374904]